bitfinex/quotes_ETHUSD_20240824
["timestamp","ask_amount","ask_price","bid_price","bid_amount"]
[1724465167640,3.70176987,2758.0,2757.6,2.3983]
[1724465167980,5.22237749,2758.0,2757.6,2.3983]
[1724465168641,3.62597,2757.9,2757.6,2.3983]
[1724465168988,3.7018777,2757.9,2757.6,2.3983]
[1724465169283,0.0759077,2757.9,2757.6,2.3983]
[1724465169454,8.77206762,2758.1,2757.6,2.3983]
[1724465169658,3.62582,2758.0,2757.6,2.3983]
[1724465169964,3.70175987,2758.0,2757.6,2.3983]
[1724465171943,3.62595,2757.9,2757.6,2.3983]
[1724465172181,3.62595,2757.9,2757.4,2.2955]
[1724465172920,3.99244749,2758.0,2757.1,2.2955]
[1724465173228,3.62629,2757.7,2757.1,2.2955]
[1724465173379,5.14689762,2757.7,2757.1,2.2955]
[1724465173571,3.62629,2757.7,2757.1,2.2955]
[1724465173972,0.07581115,2757.6,2757.1,2.2955]
[1724465174189,0.07581115,2757.6,2757.0,3.62713]
[1724465174190,0.07581115,2757.6,2757.2,3.62684]
[1724465174391,0.07581115,2757.6,2757.4,2.4154]
[1724465174615,1.90151456,2758.1,2757.4,2.4154]
[1724465174616,1.52060762,2758.1,2757.4,2.4154]
[1724465174786,0.0757459,2757.5,2757.4,6.04187]
[1724465174990,3.62556,2758.2,2757.3,3.989364]
[1724465174991,5.14616762,2758.2,2757.6,2.4154]
[1724465176619,3.62568,2758.1,2757.6,2.4154]
[1724465177381,1.52060762,2758.2,2757.6,6.645858]
[1724465177590,0.0758359,2758.0,2757.7,3.62619]
[1724465177798,0.07415824,2758.1,2757.7,3.62619]
[1724465178034,0.07409389,2757.9,2757.7,3.62619]
[1724465178338,0.07345493,2757.8,2757.7,3.62619]
[1724465178534,0.07345493,2757.8,2757.7,7.0688048]
[1724465178689,1.52060762,2758.2,2757.7,7.0688048]
[1724465178890,0.07355146,2758.1,2757.7,6.04159]
[1724465181141,0.07355146,2758.1,2757.7,2.4154]
[1724465183291,3.69923146,2758.1,2757.7,2.4154]
[1724465184436,5.21983908,2758.1,2757.7,2.4154]
[1724465186142,3.69923146,2758.1,2757.7,2.4154]
[1724465186438,5.21983908,2758.1,2757.7,2.4154]
[1724465188040,1.52060762,2758.0,2757.7,2.4154]
[1724465188198,1.52060762,2757.9,2757.7,2.4154]
[1724465188398,0.07352019,2757.9,2757.7,2.4154]
[1724465188641,1.59412781,2757.9,2757.7,2.4154]
[1724465189494,1.52060762,2757.8,2757.7,2.4154]
[1724465189741,1.594124,2757.8,2757.7,2.4154]
[1724465189905,0.07351638,2757.8,2757.7,2.4154]
[1724465192418,0.07351638,2757.8,2757.3,3.62665]
[1724465192419,0.07351638,2757.8,2757.4,2.3733]
[1724465193036,5.14650762,2758.0,2757.4,2.3733]
[1724465193250,0.07231086,2757.7,2757.4,5.99981]
[1724465193538,8.77243762,2758.0,2757.4,5.99981]
[1724465193539,1.52060762,2757.9,2757.4,5.99981]
[1724465193707,0.07232888,2757.8,2757.4,5.99981]
[1724465194496,1.5929365,2757.8,2757.4,5.99981]
[1724465194704,0.07232888,2757.8,2757.4,5.99981]
[1724465197460,0.07232888,2757.8,2757.5,4.589098]
[1724465197598,0.07232888,2757.8,2757.6,3.6263]
[1724465198039,1.52060762,2758.0,2757.7,3.62611]
[1724465198195,1.52060762,2758.1,2757.9,3.62594]
[1724465198395,8.97060762,2758.4,2758.1,3.62558]
[1724465198648,1.52060762,2758.5,2758.4,2.4103]
[1724465198848,7.45,2758.8,2758.6,3.62502]
[1724465198849,1.52060762,2758.8,2758.6,3.62502]
[1724465199069,1.52060762,2758.8,2758.7,3.62489]
[1724465199360,5.0004383,2759.5,2758.8,3.62476]
[1724465199361,1.52060762,2758.9,2758.8,3.62476]
[1724465199518,1.52060762,2759.1,2758.5,3.62504]
[1724465200521,0.0654793,2759.0,2758.5,3.62504]
[1724465201815,5.14485762,2759.2,2758.5,3.62504]
[1724465202059,0.06544715,2758.9,2758.5,3.62504]
[1724465202358,5.14485762,2759.2,2758.5,4.591101]
[1724465202552,0.06541499,2758.8,2758.5,4.591101]
[1724465202743,5.14485762,2759.2,2758.5,4.591101]
[1724465202949,0.06538284,2758.7,2758.5,4.591101]
[1724465203254,5.14485762,2759.2,2758.5,4.591101]
[1724465203432,0.06535068,2758.6,2758.5,4.591101]
[1724465203764,3.62425,2759.2,2758.5,4.591101]
[1724465204116,0.06551145,2759.1,2758.5,4.591101]
[1724465204316,0.06551145,2759.1,2758.6,1.0626671]
[1724465205060,0.06551145,2759.1,2758.6,4.6876871]
[1724465206020,0.06551145,2759.1,2758.7,6.11407]
[1724465206556,0.0654793,2759.0,2758.7,6.11407]
[1724465207036,4.19237382,2759.3,2758.7,6.11407]
[1724465207566,0.0655436,2759.2,2758.7,6.11407]
[1724465208062,0.0655436,2759.2,2758.7,6.83174371]
[1724465208956,0.0655436,2759.2,2758.8,6.11383]
[1724465209251,3.624,2759.4,2758.8,6.11383]
[1724465209450,0.06370524,2759.1,2758.8,6.11383]
[1724465209626,3.62379,2759.6,2758.9,0.68315037]
[1724465209827,0.06367309,2759.0,2758.9,0.68315037]
[1724465210024,3.62385,2759.5,2758.9,0.68315037]
[1724465210243,0.06411237,2759.0,2758.9,0.68315037]
[1724465210445,3.62385,2759.5,2758.9,0.68315037]
[1724465210620,0.06411237,2759.0,2758.9,0.68315037]
[1724465210824,3.62385,2759.5,2758.9,0.68315037]
[1724465211066,0.06411237,2759.0,2758.9,0.68315037]
[1724465211252,3.62385,2759.5,2758.9,0.68315037]
[1724465211452,0.06411237,2759.0,2758.9,0.68315037]
[1724465211989,3.62385,2759.5,2758.9,0.68315037]
[1724465212126,0.06411237,2759.0,2758.9,0.68315037]
[1724465212321,3.62385,2759.5,2758.9,0.68315037]
[1724465212528,3.62385,2759.5,2758.8,6.11383]
[1724465212529,0.06424096,2759.4,2758.8,6.11383]
[1724465213076,0.06424096,2759.4,2758.8,2.4892]
[1724465213077,3.62418,2759.3,2758.8,2.4892]
[1724465213444,0.0642664,2759.2,2758.8,2.4892]
[1724465213965,0.06423426,2759.1,2758.8,2.4892]
[1724465214171,0.06423426,2759.1,2758.9,0.68317437]
[1724465214346,3.62418,2759.3,2758.9,0.68317437]
[1724465214546,0.0642664,2759.2,2758.9,0.68317437]
[1724465214731,3.62418,2759.3,2758.9,0.68317437]
[1724465214930,0.0642664,2759.2,2758.8,2.4892]
[1724465215258,3.62418,2759.3,2758.8,2.4892]
[1724465215457,0.06423896,2759.1,2758.8,6.11393]
[1724465215781,0.06420681,2759.0,2758.8,6.11393]
[1724465216371,0.06417465,2758.9,2758.8,6.11393]
[1724465216575,0.06417465,2758.9,2758.8,10.76644437]
[1724465216875,11.0735,2759.8,2759.1,3.62433]
[1724465217444,3.62375,2759.6,2758.9,9.7204]
[1724465217724,3.62375,2759.6,2758.9,2.4713]
[1724465217849,0.362375,2759.5,2758.9,2.4713]
[1724465218478,3.62398,2759.4,2758.9,2.4713]
[1724465220027,0.06436462,2759.3,2758.9,2.4713]
[1724465220461,0.06436462,2759.3,2758.9,6.0959]
[1724465220873,7.24755,2759.6,2758.9,6.0959]
[1724465221027,0.06433247,2759.2,2758.9,6.0959]
[1724465221230,7.24755,2759.6,2759.0,0.60959]
[1724465221473,0.06430032,2759.1,2758.9,6.0959]
[1724465221676,3.62384,2759.5,2758.9,6.0959]
[1724465223280,5.99574,2759.5,2758.9,2.4713]
[1724465223577,3.62384,2759.5,2758.9,6.09589]
[1724465224149,7.45,2759.8,2759.3,3.62399]
[1724465225381,7.45,2759.8,2759.2,2.4175]
[1724465225382,3.62366,2759.7,2759.2,2.4175]
[1724465225603,3.62372,2759.6,2759.0,2.4175]
[1724465225800,3.62392,2759.5,2759.0,2.4175]
[1724465226666,7.24733,2759.7,2759.0,6.04199]
[1724465226894,3.62374,2759.6,2759.0,6.04199]
[1724465227202,3.62374,2759.6,2759.0,2.4175]
[1724465227411,7.45,2759.8,2759.2,3.62422]
[1724465227790,7.45,2759.8,2759.3,3.6241]
[1724465228106,7.45,2759.8,2759.2,3.62416]
[1724465228768,11.07345,2759.8,2759.2,3.62416]
[1724465230255,12.543136,2759.8,2759.2,3.62416]
[1724465230954,7.45,2759.8,2759.2,3.62415]
[1724465231154,11.07348,2759.8,2759.2,3.62415]
[1724465233081,3.62348,2759.8,2759.2,3.62415]
[1724465235629,3.62334,2759.9,2759.3,5.87557]
[1724465235833,5.99505,2760.1,2759.4,3.62386]
[1724465235991,9.6182,2760.1,2759.4,3.62386]
[1724465236184,9.6182,2760.1,2759.4,4.573803]
[1724465236513,9.61821,2760.1,2759.4,4.573803]
[1724465237292,3.62322,2760.0,2759.4,0.949943]
[1724465239225,3.62322,2760.0,2759.4,4.573903]
[1724465239407,5.14375762,2760.1,2759.5,1.0449413]
[1724465239605,5.14375762,2760.1,2759.6,2.4095]
[1724465239821,8.76691762,2760.1,2759.6,2.4095]
[1724465240006,3.6232,2760.0,2759.6,2.4095]
[1724465240917,5.14380762,2760.0,2759.6,2.4095]
[1724465241516,5.14380762,2760.0,2759.2,2.4095]
[1724465241517,2.4169,2759.9,2759.2,2.4095]
[1724465241756,3.62381,2759.6,2759.2,2.4095]
[1724465242051,3.62384,2759.5,2759.2,2.4095]
[1724465242820,3.62384,2759.5,2758.9,2.4095]
[1724465243028,3.62411,2759.3,2758.9,2.4095]
[1724465243351,5.14444762,2759.5,2758.9,3.01293]
[1724465243713,1.52060762,2759.5,2758.9,6.63748]
[1724465244140,1.52060762,2759.5,2758.9,10.26202]
[1724465244321,1.52060762,2759.5,2758.9,6.63747]
[1724465244530,1.52060762,2759.5,2758.9,10.26202]
[1724465244753,1.52060762,2759.5,2759.0,1.026202]
[1724465245560,1.52060762,2759.5,2759.1,6.03842]
[1724465248077,1.52060762,2759.5,2759.1,2.4141]
[1724465251043,1.52060762,2759.3,2759.0,1.026202]
[1724465251358,1.52060762,2759.3,2758.9,6.64212]
[1724465251581,1.31159062,2759.3,2758.9,6.64212]
[1724465251759,1.31159062,2759.4,2758.9,6.64212]
[1724465252427,1.31159062,2759.4,2758.9,10.26662]
[1724465252631,1.31159062,2759.4,2759.0,1.026662]
[1724465253527,1.31159062,2759.4,2759.1,2.4141]
[1724465253984,5.52454776,2759.6,2759.1,2.4141]
[1724465254289,1.90073776,2759.6,2759.1,2.4141]
[1724465254469,1.90073776,2759.5,2759.1,2.4141]
[1724465254672,5.52444776,2759.6,2759.1,3.5434152]
[1724465254973,5.52555359,2759.6,2759.1,2.4141]
[1724465258104,3.62365,2759.7,2759.2,2.3145]
[1724465258105,1.90184359,2759.7,2759.2,2.3145]
[1724465258270,1.90184359,2759.8,2759.2,2.3145]
[1724465259331,5.52531359,2759.8,2759.2,6.56640188]
[1724465259532,1.5214087,2759.7,2759.2,6.56640188]
[1724465262532,1.5214087,2759.6,2759.2,6.56640188]
[1724465263290,1.5214087,2759.7,2759.2,6.56640188]
[1724465263492,1.5214087,2759.6,2759.2,6.56640188]
[1724465263692,1.5214087,2759.6,2759.3,0.69050807]
[1724465266035,1.5214087,2759.6,2759.3,4.31460807]
[1724465266910,1.5214087,2759.6,2759.4,2.2903]
[1724465268756,1.5214087,2759.6,2759.3,4.31460807]
[1724465268757,1.5214087,2759.9,2759.5,3.62384]
[1724465268984,1.5214087,2759.9,2759.7,2.2903]
[1724465269105,1.5214087,2759.9,2759.4,2.2903]
[1724465269313,1.5214087,2759.8,2759.4,2.2903]
[1724465269549,1.5214087,2759.8,2759.4,5.9142]
[1724465270355,1.5214087,2759.9,2759.4,5.9142]
[1724465270654,1.5214087,2759.9,2759.5,3.62382]
[1724465273716,1.5214087,2759.9,2759.5,7.24758]
[1724465274046,1.5214087,2759.9,2759.5,7.24751]
[1724465274436,1.5214087,2759.9,2759.5,3.62375]
[1724465274818,1.5214087,2759.9,2759.5,7.24751]
[1724465279558,1.5214087,2759.9,2759.5,3.62375]
[1724465281877,0.05852861,2759.8,2759.5,3.62375]
[1724465282439,0.05852861,2759.8,2759.5,7.24752]
[1724465282638,0.05852861,2759.8,2759.5,3.62375]
[1724465282950,0.05852861,2759.8,2759.5,7.24752]
[1724465283344,0.05852861,2759.8,2759.5,3.62375]
[1724465283546,0.05852861,2759.8,2759.6,3.62369]
[1724465283749,0.05852861,2759.8,2759.7,6.430049]
[1724465283948,0.1318384,2760.2,2759.9,3.62331]
[1724465284176,0.05466135,2760.1,2759.9,3.62323]
[1724465284480,0.05466135,2760.1,2760.0,2.4441]
[1724465285810,0.05466135,2760.1,2759.8,2.4441]
[1724465286010,0.05466135,2760.1,2759.2,3.6242]
[1724465286213,0.05466135,2760.1,2759.7,3.62353]
[1724465289511,0.05466135,2760.1,2759.7,6.0676]
[1724465289727,0.05466135,2760.1,2759.7,9.69109]
[1724465289885,0.05466135,2760.1,2759.8,3.62343]
[1724465290232,0.05466135,2760.1,2759.7,6.06759]
[1724465290716,0.05466135,2760.1,2759.7,9.69108]
[1724465290884,0.05466135,2760.1,2759.8,3.62335]
[1724465292002,0.05466135,2760.1,2760.0,3.62318]
[1724465292332,0.05466135,2760.1,2760.0,13.31364]
[1724465292530,0.05466135,2760.1,2760.0,16.86364]
[1724465292681,0.1318384,2760.2,2760.1,9.6902]
[1724465292881,0.1318384,2760.2,2760.1,19.92606627]
[1724465297883,0.1318384,2760.2,2760.1,16.30301627]
[1724465299680,0.1318384,2760.2,2760.1,13.2402]
[1724465300438,0.1318384,2760.2,2760.1,9.06715]
[1724465300751,0.1318384,2760.2,2760.1,10.60168056]
[1724465302686,0.1318384,2760.2,2760.1,14.22473056]
[1724465303239,0.1318384,2760.2,2760.1,10.60168056]
[1724465304451,0.1318384,2760.2,2760.1,14.22473056]
[1724465315222,0.1318384,2760.2,2760.1,17.84778056]
[1724465315366,0.1318384,2760.2,2760.1,14.77473056]
[1724465317117,0.1318384,2760.2,2760.1,14.94339624]
[1724465318976,0.1318384,2760.2,2760.1,14.77473056]
[1724465324194,0.1318384,2760.2,2760.1,14.22473056]
[1724465324395,0.1318384,2760.2,2760.1,14.77473056]
[1724465328960,0.1318384,2760.2,2760.1,15.11267466]
[1724465332349,0.1318384,2760.2,2760.1,15.11267307]
[1724465335077,0.1318384,2760.2,2760.1,16.37196043]
[1724465335478,0.1318384,2760.2,2760.1,14.77473056]
[1724465335698,0.1318384,2760.2,2760.1,6.9611692]
[1724465335834,0.1318384,2760.2,2760.1,6.62305]
[1724465336191,0.1318384,2760.2,2760.1,3.0]
[1724465336192,0.17589755,2760.2,2760.1,3.0]
[1724465336336,0.17589755,2760.2,2760.1,3.62305]
[1724465336676,0.1318384,2760.2,2760.1,6.62305]
[1724465337174,0.1318384,2760.2,2760.1,7.68150182]
[1724465337340,0.1318384,2760.2,2760.1,11.64278998]
[1724465338874,0.1318384,2760.2,2760.1,11.30455182]
[1724465339032,0.1318384,2760.2,2760.1,11.64286629]
[1724465339582,0.17546625,2760.2,2760.1,11.64286629]
[1724465341485,0.17546625,2760.2,2760.1,11.64287487]
[1724465342080,0.1318384,2760.2,2760.1,11.64287487]
[1724465345081,0.1318384,2760.2,2760.1,11.30455182]
[1724465345288,0.1318384,2760.2,2760.1,11.64283109]
[1724465346189,0.1318384,2760.2,2760.1,14.07903109]
[1724465346688,0.1318384,2760.2,2760.1,11.64283109]
[1724465347086,0.17546625,2760.2,2760.1,11.64283109]
[1724465347446,0.1318384,2760.2,2760.1,11.64283109]
[1724465348058,0.1318384,2760.2,2760.1,11.30455182]
[1724465348354,0.1318384,2760.2,2760.1,11.64282549]
[1724465350020,0.1318384,2760.2,2760.1,14.07902549]
[1724465351420,0.1318384,2760.2,2760.1,13.74075182]
[1724465351582,0.1318384,2760.2,2760.1,14.07888452]
[1724465352613,0.1318384,2760.2,2760.1,14.62888452]
[1724465354889,0.1318384,2760.2,2760.1,14.29075182]
[1724465355225,0.1318384,2760.2,2760.1,7.68150182]
[1724465355429,0.1318384,2760.2,2760.1,6.96106837]
[1724465355584,0.17479339,2760.2,2760.1,6.62305]
[1724465358622,0.17479339,2760.2,2760.1,10.2461]
[1724465359403,0.17479339,2760.2,2760.1,10.7961]
[1724465359802,0.1318384,2760.2,2760.1,10.7961]
[1724465360021,0.1318384,2760.2,2760.1,12.12334]
[1724465360690,0.1318384,2760.2,2760.1,7.95029]
[1724465361038,0.1318384,2760.2,2760.1,6.62305]
[1724465363003,0.17479812,2760.2,2760.1,6.62305]
[1724465363907,0.17479812,2760.2,2760.1,10.2461]
[1724465364369,0.1318384,2760.2,2760.1,10.2461]
[1724465365127,0.1318384,2760.2,2760.1,6.62305]
[1724465365455,0.1318384,2760.2,2760.1,11.270711]
[1724465365653,0.1318384,2760.2,2760.1,7.647661]
[1724465366352,0.1740312,2760.2,2760.1,7.647661]
[1724465367071,0.1740312,2760.2,2760.1,11.270711]
[1724465367477,0.1318384,2760.2,2760.1,11.270711]
[1724465368845,0.1318384,2760.2,2760.1,7.647661]
[1724465369851,0.1318384,2760.2,2760.1,11.270711]
[1724465370256,0.1318384,2760.2,2760.1,7.647661]
[1724465370430,0.1318384,2760.2,2760.1,10.2461]
[1724465370635,0.1740738,2760.2,2760.1,10.2461]
[1724465371636,0.1740738,2760.2,2760.1,6.62305]
[1724465372062,0.1740738,2760.2,2760.1,10.2461]
[1724465374602,0.1318384,2760.2,2760.1,10.2461]
[1724465374797,0.1318384,2760.2,2760.1,11.27071]
[1724465377305,0.1318384,2760.2,2760.1,7.64766]
[1724465377687,0.17411638,2760.2,2760.1,7.64766]
[1724465378296,0.17411638,2760.2,2760.1,11.27071]
[1724465378957,0.17411638,2760.2,2760.1,7.64766]
[1724465379161,0.17411638,2760.2,2760.1,11.27071]
[1724465380372,0.1318384,2760.2,2760.1,11.27071]
[1724465380579,0.1318384,2760.2,2760.1,7.64766]
[1724465380908,0.1318384,2760.2,2760.1,11.27071]
[1724465381406,0.1318384,2760.2,2760.1,12.53010398]
[1724465381564,0.1318384,2760.2,2760.1,14.41919495]
[1724465382267,0.1318384,2760.2,2760.1,12.53010398]
[1724465382492,0.1318384,2760.2,2760.1,8.90705398]
[1724465383101,0.1318384,2760.2,2760.1,12.53008534]
[1724465383459,0.1318384,2760.2,2760.1,12.53008492]
[1724465384108,0.1318384,2760.2,2760.1,12.53009586]
[1724465385822,0.1318384,2760.2,2760.1,8.90704586]
[1724465386174,0.1318384,2760.2,2760.1,12.53009586]
[1724465386369,0.1318384,2760.2,2760.1,7.88243586]
[1724465387226,0.1318384,2760.2,2760.1,11.50548586]
[1724465387611,0.1318384,2760.2,2760.1,7.88243586]
[1724465387814,0.1318384,2760.2,2760.1,11.50548586]
[1724465388458,0.1318384,2760.2,2760.1,11.50548554]
[1724465389351,0.1318384,2760.2,2760.1,11.50548429]
[1724465389500,0.1318384,2760.2,2760.1,7.88243429]
[1724465389706,0.1318384,2760.2,2760.1,11.50548429]
[1724465390552,0.1318384,2760.2,2760.1,7.88243429]
[1724465391035,0.1318384,2760.2,2760.1,11.50548429]
[1724465393411,0.1318384,2760.2,2760.1,11.5054843]
[1724465395456,0.1318384,2760.2,2760.1,7.8824343]
[1724465395658,0.1318384,2760.2,2760.1,11.5054843]
[1724465396013,0.1318384,2760.2,2760.1,6.62305]
[1724465396321,0.17408798,2760.2,2760.1,6.62305]
[1724465396814,0.17408798,2760.2,2760.1,10.2461]
[1724465399968,0.17408798,2760.2,2760.1,6.62305]
[1724465400169,0.17408798,2760.2,2759.8,4.38191095]
[1724465400170,2.49378798,2760.2,2759.8,3.62337]
[1724465400391,2.49378798,2760.2,2759.8,3.62336]
[1724465400392,0.40151967,2760.1,2759.8,3.62336]
[1724465400710,1.92292837,2760.1,2759.8,7.24674]
[1724465400919,0.04222319,2760.0,2759.9,3.62331]
[1724465401560,0.04222319,2760.0,2759.8,3.62336]
[1724465403372,0.04222319,2760.0,2759.8,7.24673]
[1724465403575,0.04222319,2760.0,2759.8,3.62336]
[1724465404891,2.4515384,2760.2,2759.8,3.62336]
[1724465405122,0.04066063,2759.9,2759.8,3.62336]
[1724465405263,3.40137613,2760.2,2759.8,3.62336]
[1724465405764,0.04072489,2760.1,2759.8,3.62336]
[1724465408026,0.04072489,2760.1,2759.7,3.62355]
[1724465408536,2.3197,2760.0,2759.7,3.62355]
[1724465408683,0.04057547,2759.9,2759.7,3.62355]
[1724465409198,0.04057547,2759.9,2759.8,3.62345]
[1724465411496,2.4515384,2760.2,2759.8,3.62345]
[1724465411697,0.04063973,2760.1,2759.8,3.62345]
[1724465413185,0.04063973,2760.1,2760.0,3.62318]
[1724465413846,0.1318384,2760.2,2760.1,3.62305]
[1724465415443,0.1318384,2760.2,2760.0,3.62318]
[1724465415763,0.04060186,2760.1,2760.0,3.62318]
[1724465424704,0.04060186,2760.1,2759.9,3.62331]
[1724465424928,0.04060186,2760.1,2759.9,3.62323]
[1724465426198,0.04060186,2760.1,2759.7,3.62349]
[1724465426735,0.04060186,2760.1,2759.8,3.62334]
[1724465430235,0.04060186,2760.1,2759.9,3.62331]
[1724465431885,0.07579036,2760.1,2759.9,3.62331]
[1724465434343,0.07579036,2760.1,2759.6,0.33796093]
[1724465434344,2.3106,2760.0,2759.6,0.33796093]
[1724465434498,0.07435741,2759.9,2759.6,6.62364]
[1724465435297,0.07435741,2759.9,2759.5,3.62377]
[1724465436324,0.07435741,2759.9,2759.5,7.24753]
[1724465436552,0.07435741,2759.9,2759.5,3.62376]
[1724465436721,0.82730102,2759.9,2759.3,3.96211053]
[1724465436917,2.3106,2759.8,2759.3,3.62399]
[1724465437239,2.38488163,2759.7,2759.2,3.62423]
[1724465438057,3.90629033,2759.7,2759.2,3.62423]
[1724465438393,2.38488163,2759.7,2759.2,3.62423]
[1724465438743,3.21315702,2759.7,2759.2,3.62423]
[1724465441847,0.07415849,2759.3,2759.1,3.62429]
[1724465442079,0.07415849,2759.3,2758.9,3.62457]
[1724465443573,2.3819,2759.2,2758.9,3.62457]
[1724465443867,0.071194,2759.1,2758.9,3.62457]
[1724465444660,0.071194,2759.1,2758.7,3.62484]
[1724465444977,2.3819,2759.0,2758.5,3.62512]
[1724465445290,2.3819,2759.0,2758.3,3.62538]
[1724465445481,0.07081053,2758.9,2758.4,3.6252]
[1724465446264,0.07081053,2758.9,2758.5,3.62515]
[1724465446437,0.70305152,2758.9,2758.5,3.62515]
[1724465446843,0.70305152,2758.9,2758.3,3.62538]
[1724465447045,2.3819,2758.8,2758.3,3.62538]
[1724465447562,0.07056427,2758.7,2758.3,3.62538]
[1724465448678,0.07056427,2758.7,2758.4,3.62528]
[1724465448869,0.3790348,2758.7,2758.4,3.62528]
[1724465450085,0.3790348,2758.7,2758.1,3.62563]
[1724465450782,0.3790348,2758.7,2758.3,3.6254]
[1724465451077,0.3790348,2758.7,2758.1,3.62558]
[1724465451250,2.3819,2758.6,2758.1,3.62558]
[1724465451449,0.27609348,2758.5,2758.1,3.62558]
[1724465451680,2.3819,2758.6,2758.1,7.25116]
[1724465452054,2.3819,2758.6,2758.2,3.62549]
[1724465455007,0.0701854,2758.5,2758.2,3.62549]
[1724465456228,0.0701854,2758.5,2758.3,3.62539]
[1724465456422,0.0701854,2758.5,2758.4,3.62529]
[1724465456767,2.4112,2758.8,2758.4,3.62529]
[1724465456967,0.07018544,2758.7,2758.4,3.62529]
[1724465461882,0.07018544,2758.7,2758.3,3.62539]
[1724465462082,0.07018544,2758.7,2758.3,3.62533]
[1724465462279,0.07018544,2758.7,2758.3,7.25067]
[1724465462554,0.07018544,2758.7,2758.4,3.62526]
[1724465463465,0.07018544,2758.7,2758.3,3.62533]
[1724465464635,0.07018544,2758.7,2758.3,7.25067]
[1724465465232,0.07018544,2758.7,2758.4,3.62521]
[1724465465861,0.07018544,2758.7,2758.5,3.62515]
[1724465466029,0.07018544,2758.7,2758.6,7.25004]
[1724465466361,2.4859,2759.1,2758.7,3.62485]
[1724465466543,0.067914,2759.0,2758.7,3.62485]
[1724465468251,0.067914,2759.0,2758.8,3.62472]
[1724465468429,0.067914,2759.0,2758.9,9.56456]
[1724465468820,2.4859,2759.6,2759.1,3.62436]
[1724465469669,6.10961,2759.6,2759.1,3.62436]
[1724465472583,0.06068009,2759.5,2759.1,3.62436]
[1724465473289,0.06068009,2759.5,2758.9,5.93981]
[1724465474239,0.06068009,2759.5,2759.1,3.62435]
[1724465474784,0.06068009,2759.5,2759.1,7.24863]
[1724465474956,11.07362,2759.7,2759.1,3.62428]
[1724465475150,11.07362,2759.7,2759.2,3.62422]
[1724465475151,0.0608435,2759.6,2759.2,3.62422]
[1724465475383,0.0608435,2759.6,2759.1,3.62428]
[1724465475940,0.0608435,2759.6,2759.1,3.62426]
[1724465476182,0.0608435,2759.6,2759.1,3.62424]
[1724465476401,0.0608435,2759.6,2759.3,6.03022]
[1724465476538,0.0608435,2759.6,2759.4,0.61026993]
[1724465480388,3.62332,2759.9,2759.4,0.61026993]
[1724465480609,0.05842141,2759.8,2759.3,6.03022]
[1724465481642,0.05842141,2759.8,2759.3,9.65424]
[1724465481863,0.05842141,2759.8,2759.3,6.03022]
[1724465482045,25.65596,2760.0,2759.3,6.03022]
[1724465482275,3.62341,2759.9,2759.3,6.03022]
[1724465482473,6.551467,2759.8,2759.1,9.65296]
[1724465482675,6.551467,2759.8,2759.2,3.62421]
[1724465484044,0.05851866,2759.7,2759.2,3.62421]
[1724465485285,2.3249,2759.6,2759.2,3.62421]
[1724465485807,0.05844287,2759.5,2759.2,3.62421]
[1724465488418,0.05844287,2759.5,2759.3,3.62408]
[1724465490803,0.05844287,2759.5,2759.2,3.62422]
[1724465493192,0.05844287,2759.5,2759.3,3.6241]
[1724465500882,0.05844287,2759.5,2759.3,3.62403]
[1724465501284,2.3319,2759.8,2759.3,3.62403]
[1724465501594,3.672415,2759.8,2759.3,7.24805]
[1724465501798,0.0583852,2759.7,2759.4,3.62397]
[1724465501995,8.9714087,2760.0,2759.5,5.89302]
[1724465502320,0.05844199,2759.9,2759.6,3.62371]
[1724465503033,0.05844199,2759.9,2759.5,2.2692]
[1724465503034,0.05844199,2759.9,2759.5,5.89303]
[1724465503583,0.05844199,2759.9,2759.3,9.51722]
[1724465503861,1.1131652,2759.8,2759.3,5.89319]
[1724465504013,0.0583994,2759.7,2759.3,5.89319]
[1724465504219,1.1131652,2759.8,2759.3,5.89319]
[1724465504428,0.0583994,2759.7,2759.3,5.89319]
[1724465504733,3.62332,2759.9,2759.3,5.89319]
[1724465505024,5.47829087,2759.9,2759.3,5.89319]
[1724465505224,0.05843018,2759.8,2759.3,5.89319]
[1724465505427,2.3319,2759.7,2759.4,3.62396]
[1724465505598,2.3902994,2759.7,2759.3,3.62399]
[1724465505782,2.3902994,2759.7,2759.3,7.24801]
[1724465506429,2.3902994,2759.7,2759.3,3.62399]
[1724465506796,2.3902994,2759.7,2759.3,7.248]
[1724465507003,0.0583994,2759.7,2759.3,7.248]
[1724465507208,7.81019087,2759.9,2759.3,7.248]
[1724465507428,0.05846337,2759.8,2759.3,7.248]
[1724465507617,0.05846337,2759.8,2759.4,3.62396]
[1724465509634,0.05846337,2759.8,2759.3,3.62399]
[1724465510650,1.74691067,2759.8,2759.3,3.62399]
[1724465511383,3.26831937,2759.8,2759.3,3.62399]
[1724465514168,1.5214087,2759.7,2759.3,3.62399]
[1724465514541,0.05836862,2759.6,2759.3,3.62399]
[1724465514877,3.89057732,2759.6,2759.1,3.62432]
[1724465515073,8.0934809,2759.6,2759.1,3.62432]
[1724465515686,2.9483522,2759.6,2759.1,3.62428]
[1724465515965,3.89057732,2759.6,2759.1,3.62428]
[1724465516177,2.36916862,2759.6,2759.1,7.24856]
[1724465516391,3.89057732,2759.6,2759.1,7.24856]
[1724465516854,3.89057732,2759.6,2759.2,3.62421]
[1724465519277,3.89057732,2759.6,2759.3,3.62402]
[1724465521573,3.89057732,2759.6,2759.3,3.62401]
[1724465521939,1.57977732,2759.6,2759.3,3.62401]
[1724465522139,1.57977732,2759.6,2759.3,7.24803]
[1724465522474,1.57977732,2759.6,2759.4,3.62385]
[1724465523783,1.57977732,2759.6,2759.5,3.62384]
[1724465530203,1.57977732,2759.6,2759.3,7.24799]
[1724465530414,1.57977732,2759.6,2759.4,3.62389]
[1724465532574,1.57977732,2759.6,2759.5,3.62384]
[1724465532769,1.57977732,2759.6,2759.4,3.6239]
[1724465532971,1.57977732,2759.6,2759.3,3.62398]
[1724465533401,1.57977732,2759.6,2759.5,3.62384]
[1724465533574,1.57977732,2759.6,2759.4,3.62394]
[1724465535109,1.57977732,2759.6,2759.1,3.62435]
[1724465535407,1.96285505,2759.6,2759.1,7.24864]
[1724465535579,1.96285505,2759.6,2759.1,3.62429]
[1724465536398,1.96285505,2759.6,2759.1,3.62428]
[1724465537204,1.5214087,2759.5,2759.1,3.62428]
[1724465537509,2.30359726,2759.4,2759.1,3.62428]